fUSD/lending_fUSD_20240712
["ID","MTS","AMOUNT","RATE_DAILY","PERIOD"]
[331753263,1720752670494,-500.0,0.00013847,2]
[331753264,1720752670508,-500.0,0.00013847,2]
[331753265,1720752670517,-500.0,0.00013847,2]
[331753266,1720752670526,-500.0,0.00013847,2]
[331753267,1720752670536,-500.0,0.00013847,2]
[331753268,1720752670547,-500.0,0.00013847,2]
[331753269,1720752670557,-500.0,0.00013847,2]
[331753270,1720752670567,-500.0,0.00013847,2]
[331753271,1720752670580,-504.26,0.00013847,2]
[331753272,1720752670592,-500.0,0.00013847,2]
[331753273,1720752670603,-500.0,0.00013847,2]
[331753274,1720752670613,-500.0,0.00013847,2]
[331753275,1720752670623,-501.47566971,0.00013847,2]
[331753276,1720752670633,-500.0,0.00013847,2]
[331753277,1720752670643,-500.0,0.00013847,2]
[331753278,1720752670652,-500.0,0.00013847,2]
[331753279,1720752670662,-500.0,0.00013847,2]
[331753280,1720752670673,-500.0,0.00013847,2]
[331753281,1720752670683,-500.0,0.00013847,2]
[331753282,1720752670692,-502.71308807,0.00013847,2]
[331753283,1720752670701,-500.0,0.00013847,2]
[331753284,1720752670711,-500.0,0.00013847,2]
[331753285,1720752670720,-500.0,0.00013847,2]
[331753286,1720752670730,-500.0,0.00013847,2]
[331753287,1720752670740,-500.0,0.00013847,2]
[331753288,1720752670749,-500.0,0.00013847,2]
[331753289,1720752670759,-500.0,0.00013847,2]
[331753290,1720752670769,-500.0,0.00013847,2]
[331753291,1720752670778,-500.0,0.00013847,2]
[331753292,1720752670787,-500.0,0.00013847,2]
[331753293,1720752670796,-500.0,0.00013847,2]
[331753294,1720752670806,-500.0,0.00013847,2]
[331753295,1720752670816,-500.0,0.00013847,2]
[331753296,1720752670825,-500.0,0.00013847,2]
[331753297,1720752670835,-500.0,0.00013847,2]
[331753298,1720752670844,-500.0,0.00013847,2]
[331753299,1720752670853,-500.0,0.00013847,2]
[331753300,1720752670862,-500.0,0.00013847,2]
[331753301,1720752670872,-500.0,0.00013847,2]
[331753302,1720752670882,-570.94,0.00013847,2]
[331753303,1720752670891,-500.0,0.00013847,2]
[331753304,1720752670901,-500.0,0.00013847,2]
[331753305,1720752671018,-634.7,0.00013847,2]
[331753306,1720752671039,-500.0,0.00013847,2]
[331753307,1720752671049,-500.0,0.00013847,2]
[331753308,1720752671059,-500.0,0.00013847,2]
[331753309,1720752671068,-583.0,0.00013847,2]
[331753310,1720752671078,-500.0,0.00013847,2]
[331753311,1720752671087,-500.0,0.00013847,2]
[331753312,1720752671097,-500.0,0.00013847,2]
[331753313,1720752671106,-150.0,0.00013847,2]
[331753314,1720752671116,-150.0,0.00013848,2]
[331753315,1720752671125,-196484.7455091,0.00013851,2]
[331753316,1720752671135,-797.0,0.00013851,2]
[331753317,1720752671144,-500.0,0.00013851,2]
[331753318,1720752671153,-500.0,0.00013851,2]
[331753319,1720752671162,-500.0,0.00013851,2]
[331753320,1720752671175,-500.0,0.00013851,2]
[331753321,1720752671184,-500.0,0.00013851,2]
[331753322,1720752671193,-500.0,0.00013851,2]
[331753323,1720752671202,-500.0,0.00013851,2]
[331753324,1720752671211,-500.0,0.00013851,2]
[331753325,1720752671221,-500.0,0.00013851,2]
[331753326,1720752671230,-500.0,0.00013851,2]
[331753327,1720752671239,-500.0,0.00013851,2]
[331753328,1720752671248,-500.0,0.00013851,2]
[331753329,1720752671257,-500.0,0.00013851,2]
[331753330,1720752671266,-500.0,0.00013851,2]
[331753331,1720752671275,-500.0,0.00013851,2]
[331753332,1720752671285,-500.0,0.00013851,2]
[331753333,1720752671295,-500.0,0.00013851,2]
[331753334,1720752671304,-500.0,0.00013851,2]
[331753335,1720752671313,-500.0,0.00013851,2]
[331753336,1720752671323,-500.0,0.00013851,2]
[331753337,1720752671332,-1136.89,0.00013851,2]
[331753338,1720752671342,-819.57,0.00013851,2]
[331753339,1720752671351,-500.0,0.00013851,2]
[331753340,1720752671361,-500.0,0.00013851,2]
[331753341,1720752671370,-674.35,0.00013851,2]
[331753342,1720752671380,-654.73,0.00013851,2]
[331753343,1720752671390,-3967.14,0.00013851,2]
[331753344,1720752671399,-500.0,0.00013851,2]
[331753345,1720752671409,-1560.62,0.00013851,2]
[331753346,1720752671419,-500.0,0.00013851,2]
[331753347,1720752671429,-1686.99,0.00013851,2]
[331753348,1720752671438,-826.77,0.00013851,2]
[331753349,1720752671447,-1419.91,0.00013851,2]
[331753350,1720752671458,-500.0,0.00013851,2]
[331753351,1720752671468,-500.0,0.00013851,2]
[331753352,1720752671477,-500.0,0.00013851,2]
[331753353,1720752671487,-150.0,0.00013851,2]
[331753354,1720752671496,-500.0,0.00013852,2]
[331753355,1720752671509,-279.35,0.00013852,2]
[331753356,1720752671518,-279.35,0.00013852,2]
[331753357,1720752671528,-485.872299,0.00013852,2]
[331753358,1720752671537,-409.4,0.00013852,2]
[331753359,1720752671547,-409.4,0.00013852,2]
[331753360,1720752671556,-171.861668,0.00013852,2]
[331753361,1720752671565,-171.86166,0.00013852,2]
[331753362,1720752671575,-500.0,0.00013852,2]
[331753363,1720752671585,-500.0,0.00013852,2]
[331753364,1720752671595,-500.0,0.00013852,2]
[331753365,1720752671605,-831.42,0.00013852,2]
[331753366,1720752671615,-773.35,0.00013852,2]
[331753367,1720752671626,-500.0,0.00013852,2]
[331753368,1720752671637,-500.0,0.00013852,2]
[331753369,1720752671647,-500.0,0.00013852,2]
[331753370,1720752671657,-500.0,0.00013852,2]
[331753371,1720752671667,-500.0,0.00013852,2]
[331753372,1720752671677,-500.0,0.00013852,2]
[331753373,1720752671691,-500.0,0.00013852,2]
[331753374,1720752671703,-500.0,0.00013852,2]
[331753375,1720752671714,-500.0,0.00013852,2]
[331753376,1720752671724,-500.0,0.00013852,2]
[331753377,1720752671735,-500.0,0.00013852,2]
[331753378,1720752671744,-500.0,0.00013852,2]
[331753379,1720752671754,-500.0,0.00013852,2]
[331753380,1720752671765,-500.0,0.00013852,2]
[331753381,1720752671774,-500.0,0.00013852,2]
[331753382,1720752671783,-500.0,0.00013852,2]
[331753383,1720752671793,-500.0,0.00013852,2]
[331753384,1720752671803,-501.20655434,0.00013852,2]
[331753385,1720752671812,-500.0,0.00013852,2]
[331753386,1720752671821,-424.69,0.00013852,2]
[331753387,1720752671832,-821.24,0.00013852,2]
[331753388,1720752671841,-500.0,0.00013852,2]
[331753389,1720752671850,-553.65,0.00013852,2]
[331753390,1720752671860,-500.0,0.00013852,2]
[331753391,1720752671869,-780.44,0.00013852,2]
[331753392,1720752671878,-500.0,0.00013852,2]
[331753393,1720752671888,-500.0,0.00013852,2]
[331753394,1720752671897,-500.0,0.00013852,2]
[331753395,1720752671907,-500.0,0.00013852,2]
[331753396,1720752671916,-500.0,0.00013852,2]
[331753397,1720752671928,-500.0,0.00013852,2]
[331753398,1720752671937,-500.0,0.00013852,2]
[331753399,1720752671946,-500.0,0.00013852,2]
[331753400,1720752671955,-500.0,0.00013852,2]
[331753401,1720752671964,-500.0,0.00013852,2]
[331753402,1720752671974,-500.0,0.00013852,2]
[331753403,1720752671983,-500.0,0.00013852,2]
[331753404,1720752671993,-378.06,0.00013852,2]
[331753405,1720752672002,-500.0,0.00013852,2]
[331753406,1720752672011,-500.0,0.00013852,2]
[331753407,1720752672020,-158.27,0.00013852,2]
[331753408,1720752672029,-254.1,0.00013852,2]
[331753409,1720752672038,-336.41,0.00013852,2]
[331753410,1720752672047,-500.0,0.00013852,2]
[331753411,1720752672056,-500.0,0.00013852,2]
[331753412,1720752672066,-500.0,0.00013852,2]
[331753413,1720752672075,-500.0,0.00013852,2]
[331753414,1720752672084,-500.0,0.00013852,2]
[331753415,1720752672094,-500.0,0.00013852,2]
[331753416,1720752672103,-956.67,0.00013852,2]
[331753417,1720752672112,-573.87,0.00013852,2]
[331753418,1720752672121,-500.0,0.00013852,2]
[331753419,1720752672130,-199.28,0.00013852,2]
[331753420,1720752672140,-444.07,0.00013852,2]
[331753421,1720752672149,-500.93496334,0.00013852,2]
[331753422,1720752672158,-500.0,0.00013852,2]
[331753423,1720752672169,-500.0,0.00013852,2]
[331753424,1720752672178,-548.66,0.00013852,2]
[331753425,1720752672187,-500.0,0.00013852,2]
[331753426,1720752672196,-498.15556766,0.00013852,2]
[331753427,1720752672205,-500.0,0.00013852,2]
[331753428,1720752672214,-500.0,0.00013852,2]
[331753429,1720752672224,-500.0,0.00013852,2]
[331753430,1720752672233,-595.35,0.00013852,2]
[331753431,1720752672242,-500.0,0.00013852,2]
[331753432,1720752672251,-500.0,0.00013852,2]
[331753433,1720752672260,-500.0,0.00013852,2]
[331753434,1720752672269,-500.0,0.00013852,2]
[331753435,1720752672278,-500.0,0.00013852,2]
[331753436,1720752672288,-500.0,0.00013852,2]
[331753437,1720752672297,-500.0,0.00013852,2]
[331753438,1720752672305,-500.0,0.00013852,2]
[331753439,1720752672314,-355.14,0.00013852,2]
[331753440,1720752672324,-500.0,0.00013852,2]
[331753441,1720752672333,-1029.63,0.00013852,2]
[331753442,1720752672342,-500.0,0.00013852,2]
[331753443,1720752672351,-500.0,0.00013852,2]
[331753444,1720752672360,-500.0,0.00013852,2]
[331753445,1720752672369,-532.42,0.00013852,2]
[331753446,1720752672378,-614.65,0.00013852,2]
[331753447,1720752672387,-620.91,0.00013852,2]
[331753448,1720752672396,-500.0,0.00013852,2]
[331753449,1720752672405,-500.0,0.00013852,2]
[331753450,1720752672415,-500.0,0.00013852,2]
[331753451,1720752672425,-500.0,0.00013852,2]
[331753452,1720752672434,-501.85259277,0.00013852,2]
[331753453,1720752672443,-500.0,0.00013852,2]
[331753454,1720752672452,-500.0,0.00013852,2]
[331753455,1720752672461,-581.95,0.00013852,2]
[331753456,1720752672470,-1037.52,0.00013852,2]
[331753457,1720752672479,-500.0,0.00013852,2]
[331753458,1720752672488,-502.35617857,0.00013852,2]
[331753459,1720752672497,-500.0,0.00013852,2]
[331753460,1720752672510,-501.13541123,0.00013852,2]
[331753461,1720752672519,-500.0,0.00013852,2]
[331753462,1720752672528,-502.87038163,0.00013852,2]
[331753463,1720752672537,-500.0,0.00013852,2]
[331753464,1720752672548,-500.0,0.00013852,2]
[331753465,1720752672557,-501.82441271,0.00013852,2]
[331753466,1720752672566,-500.0,0.00013852,2]
[331753467,1720752672575,-500.0,0.00013852,2]
[331753468,1720752672584,-550.44,0.00013852,2]
[331753469,1720752672593,-500.0,0.00013852,2]
[331753470,1720752672602,-500.0,0.00013852,2]
[331753471,1720752672611,-500.0,0.00013852,2]
[331753472,1720752672620,-500.0,0.00013852,2]
[331753473,1720752672630,-502.12261014,0.00013852,2]
[331753474,1720752672639,-500.6792651,0.00013852,2]
[331753475,1720752672647,-500.0,0.00013852,2]
[331753476,1720752672656,-396.89142449,0.00013852,2]
[331753477,1720752672665,-500.0,0.00013852,2]
[331753478,1720752672676,-500.0,0.00013852,2]
[331753479,1720752672685,-500.0,0.00013852,2]
[331753480,1720752672694,-500.0,0.00013852,2]
[331753481,1720752672704,-522.10676408,0.00013852,2]
[331753482,1720752672713,-500.83113031,0.00013852,2]
[331753483,1720752672722,-500.0,0.00013852,2]
[331753484,1720752672732,-500.8597549,0.00013852,2]
[331753485,1720752672741,-580.14178886,0.00013852,2]
[331753486,1720752672750,-500.0,0.00013852,2]
[331753487,1720752672759,-500.0,0.00013852,2]
[331753488,1720752672768,-500.0,0.00013852,2]
[331753489,1720752672777,-500.0,0.00013852,2]
[331753490,1720752672786,-500.0,0.00013852,2]
[331753491,1720752672795,-500.0,0.00013852,2]
[331753492,1720752672804,-500.0,0.00013852,2]
[331753493,1720752672813,-500.0,0.00013852,2]
[331753494,1720752672823,-627.33796768,0.00013852,2]
[331753495,1720752672832,-500.0,0.00013852,2]
[331753496,1720752672841,-497.78084025,0.00013852,2]
[331753497,1720752672850,-500.0,0.00013852,2]
[331753498,1720752672859,-500.0,0.00013852,2]
[331753499,1720752672868,-500.0,0.00013852,2]
[331753500,1720752672877,-370.18537675,0.00013852,2]
[331753501,1720752672887,-500.0,0.00013852,2]
[331753502,1720752672896,-500.0,0.00013852,2]
[331753503,1720752672905,-500.0,0.00013852,2]
[331753504,1720752672915,-500.0,0.00013852,2]
[331753505,1720752672925,-500.0,0.00013852,2]
[331753506,1720752672935,-300.18996329,0.00013852,2]
[331753507,1720752672944,-500.0,0.00013852,2]
[331753508,1720752672954,-500.0,0.00013852,2]
[331753509,1720752672963,-500.0,0.00013852,2]
[331753510,1720752672973,-3446.75,0.00013852,2]
[331753511,1720752672982,-305.03596019,0.00013852,2]
[331753512,1720752672991,-501.05369897,0.00013852,2]
[331753513,1720752673000,-501.58982593,0.00013852,2]
[331753514,1720752673009,-580.3728103,0.00013852,2]
[331753515,1720752673019,-500.20025043,0.00013852,2]
[331753516,1720752673028,-500.0,0.00013852,2]
[331753517,1720752673037,-500.0,0.00013852,2]
[331753518,1720752673046,-500.0,0.00013852,2]
[331753519,1720752673055,-500.0,0.00013852,2]
[331753520,1720752673065,-500.0,0.00013852,2]
[331753521,1720752673074,-500.0,0.00013852,2]
[331753522,1720752673083,-500.25540462,0.00013852,2]
[331753523,1720752673093,-500.0,0.00013852,2]
[331753524,1720752673102,-500.0,0.00013852,2]
[331753525,1720752673112,-500.0,0.00013852,2]
[331753526,1720752673122,-500.40127605,0.00013852,2]
[331753527,1720752673131,-500.0,0.00013852,2]
[331753528,1720752673141,-500.0,0.00013852,2]
[331753529,1720752673150,-500.0,0.00013852,2]
[331753530,1720752673159,-500.0,0.00013852,2]
[331753531,1720752673169,-500.0,0.00013852,2]
[331753532,1720752673178,-500.0,0.00013852,2]
[331753533,1720752673188,-500.0,0.00013852,2]
[331753534,1720752673197,-500.0,0.00013852,2]
[331753535,1720752673206,-500.0,0.00013852,2]
[331753536,1720752673215,-500.0,0.00013852,2]
[331753537,1720752673224,-500.0,0.00013852,2]
[331753538,1720752673233,-500.0,0.00013852,2]
[331753539,1720752673242,-1077.23,0.00013852,2]
[331753540,1720752673252,-500.0,0.00013852,2]
[331753541,1720752673260,-500.0,0.00013852,2]
[331753542,1720752673270,-500.0,0.00013852,2]
[331753543,1720752673279,-500.0,0.00013852,2]
[331753544,1720752673288,-500.0,0.00013852,2]
[331753545,1720752673298,-500.0,0.00013852,2]
[331753546,1720752673307,-500.0,0.00013852,2]
[331753547,1720752673316,-500.0,0.00013852,2]
[331753548,1720752673325,-500.0,0.00013852,2]
[331753549,1720752673334,-500.0,0.00013852,2]
[331753550,1720752673343,-503.25741322,0.00013852,2]
[331753551,1720752673352,-500.0,0.00013852,2]
[331753552,1720752673361,-500.0,0.00013852,2]
[331753553,1720752673370,-500.0,0.00013852,2]
[331753554,1720752673379,-463.14783446,0.00013852,2]
[331753555,1720752676549,-250.11674897,0.0001375,2]
[331753556,1720752899573,2683.39482488,0.00025,60]
[331753557,1720752965050,333.67,0.0001089,2]
[331753558,1720753157223,155.0,0.00011199,2]
[331753559,1720753213925,155.95519342,0.00011199,2]
[331753560,1720753245069,226.69301699,0.00011199,2]
[331753561,1720753281558,35637.52732064,0.00011199,2]
[331753562,1720753372934,308.57978136,0.00011199,2]
[331753563,1720753385064,276.69741953,0.00011199,2]
[331753564,1720753439434,155.0,0.00011199,2]
[331753565,1720753471126,4000.0,0.00025,60]
[331753567,1720753624529,316.98,0.00010831,2]
[331753568,1720753776572,155.22966959,0.00011199,2]
[331753593,1720753840087,-200.91,0.00012,2]
[331753594,1720753840098,-155.0,0.00012314,2]
[331753595,1720753840107,-235.83276178,0.0001274,2]
[331753596,1720753840117,-250.0,0.0001275,2]
[331753597,1720753840127,-186.76,0.0001276,2]
[331753598,1720753840136,-180.96,0.00012785,2]
[331753599,1720753840146,-1000.0,0.00012808,2]
[331753600,1720753840155,-316.98,0.00013095,2]
[331753601,1720753840164,-567.30997628,0.00013128,2]
[331753602,1720753840174,-493.64801548,0.00013128,2]
[331753603,1720753840184,-300.0,0.0001333,2]
[331753604,1720753840193,-192.332697,0.00013331,2]
[331753605,1720753840202,-682.3178,0.00013331,2]
[331753606,1720753840212,-192.832814,0.00013331,2]
[331753607,1720753840221,-198.479556,0.00013331,2]
[331753608,1720753840230,-181.57218,0.00013331,2]
[331753609,1720753840240,-1410.546254,0.00013331,2]
[331753610,1720753840249,-179.3879,0.00013331,2]
[331753611,1720753840258,-343.12,0.00013436,6]
[331753612,1720753840269,-192.332697,0.00013498,2]
[331753613,1720753840278,-682.3178,0.00013498,2]
[331753614,1720753840288,-1410.546254,0.00013498,2]
[331753615,1720753840297,-150.44,0.000135,2]
[331753616,1720753840306,-150.63,0.000135,2]
[331753617,1720753840316,-863.23,0.000135,2]
[331753618,1720753840326,-449.0,0.00013595,2]
[331753619,1720753840335,-1255.624,0.00013615,2]
[331753620,1720753840344,-335.374,0.00013615,2]
[331753621,1720753840354,-199.278,0.00013615,2]
[331753622,1720753840364,-162.676,0.00013615,2]
[331753623,1720753840374,-284.875,0.00013615,2]
[331753624,1720753840384,-551.675,0.00013615,2]
[331753625,1720753840394,-3272.751,0.00013615,2]
[331753626,1720753840403,-2003.501,0.00013615,2]
[331753627,1720753840413,-1534.278,0.00013615,2]
[331753628,1720753840423,-21353.094,0.00013615,2]
[331753630,1720753840432,-5218.182,0.00013615,2]
[331753632,1720753840442,-1209.63,0.00013615,2]
[331753634,1720753840451,-1072.0,0.00013615,2]
[331753635,1720753840460,-192.332697,0.00013665,2]
[331753636,1720753840470,-682.3178,0.00013665,2]
[331753637,1720753840479,-192.832814,0.00013665,2]
[331753638,1720753840488,-198.479556,0.00013665,2]
[331753639,1720753840497,-1410.546254,0.00013665,2]
[331753640,1720753840507,-4510.8354,0.00013697,2]
[331753641,1720753840516,-608.26,0.00013699,2]
[331753642,1720753840525,-972.728,0.0001371,2]
[331753643,1720753840535,-449.0,0.00013735,2]
[331753644,1720753840544,-500.0,0.00013749,2]
[331753645,1720753840555,-500.0,0.00013749,2]
[331753646,1720753840564,-500.0,0.00013749,2]
[331753647,1720753840574,-500.0,0.00013749,2]
[331753648,1720753840583,-500.0,0.00013749,2]
[331753649,1720753840593,-374.10755465,0.00013749,2]
[331753650,1720753840603,-500.0,0.00013749,2]
[331753651,1720753840612,-500.0,0.00013749,2]
[331753652,1720753840621,-500.0,0.00013749,2]
[331753653,1720753840631,-500.0,0.00013749,2]
[331753654,1720753840641,-500.0,0.00013749,2]
[331753655,1720753840650,-670.4,0.00013749,2]
[331753656,1720753840659,-516.55,0.00013749,2]
[331753657,1720753840669,-505.03,0.00013749,2]
[331753658,1720753840678,-1000.0,0.00013749,2]
[331753659,1720753840687,-500.0,0.00013749,2]
[331753660,1720753840696,-500.0,0.00013749,2]
[331753661,1720753840706,-500.0,0.00013749,2]
[331753662,1720753840715,-500.0,0.00013749,2]
[331753663,1720753840724,-500.0,0.00013749,2]
[331753664,1720753840734,-500.0,0.00013749,2]
[331753665,1720753840744,-500.0,0.00013749,2]
[331753666,1720753840754,-500.0,0.00013749,2]
[331753667,1720753840763,-500.0,0.00013749,2]
[331753668,1720753840772,-500.0,0.00013749,2]
[331753669,1720753840781,-500.0,0.00013749,2]
[331753670,1720753840791,-500.0,0.00013749,2]
[331753671,1720753840800,-500.0,0.00013749,2]
[331753672,1720753840810,-500.0,0.00013749,2]
[331753673,1720753840819,-500.0,0.00013749,2]
[331753674,1720753840829,-565.99,0.00013749,2]
[331753675,1720753840842,-500.0,0.00013749,2]
[331753676,1720753840852,-694.4,0.00013749,2]
[331753677,1720753840862,-662.33,0.00013749,2]
[331753678,1720753840871,-726.76,0.00013749,2]
[331753679,1720753840882,-500.0,0.00013749,2]
[331753680,1720753840892,-500.0,0.00013749,2]
[331753681,1720753840902,-500.0,0.00013749,2]
[331753682,1720753840913,-864.4,0.00013749,2]
[331753683,1720753840923,-615.26,0.00013749,2]
[331753684,1720753840932,-500.0,0.00013749,2]
[331753685,1720753840941,-500.0,0.00013749,2]
[331753686,1720753840951,-500.0,0.00013749,2]
[331753687,1720753840960,-585.35,0.00013749,2]
[331753688,1720753840970,-500.0,0.00013749,2]
[331753689,1720753840980,-776.5,0.00013749,2]
[331753690,1720753840989,-500.0,0.00013749,2]
[331753691,1720753840999,-500.0,0.00013749,2]
[331753692,1720753841008,-548.13,0.00013749,2]
[331753693,1720753841019,-718.94,0.00013749,2]
[331753694,1720753841028,-500.0,0.00013749,2]
[331753695,1720753841037,-535.75,0.00013749,2]
[331753696,1720753841047,-500.0,0.00013749,2]
[331753697,1720753841057,-500.0,0.00013749,2]
[331753698,1720753841067,-500.0,0.00013749,2]
[331753699,1720753841077,-905.08,0.00013749,2]
[331753700,1720753841087,-500.0,0.00013749,2]
[331753701,1720753841097,-500.0,0.00013749,2]
[331753702,1720753841107,-541.67,0.00013749,2]
[331753703,1720753841116,-500.0,0.00013749,2]
[331753704,1720753841126,-730.99,0.00013749,2]
[331753705,1720753841136,-500.0,0.00013749,2]
[331753706,1720753841146,-540.61,0.00013749,2]
[331753707,1720753841156,-500.0,0.00013749,2]
[331753708,1720753841165,-984.63,0.00013749,2]
[331753709,1720753841174,-500.0,0.00013749,2]
[331753710,1720753841183,-930.59,0.00013749,2]
[331753711,1720753841193,-500.0,0.00013749,2]
[331753712,1720753841203,-500.0,0.00013749,2]
[331753713,1720753841212,-500.0,0.00013749,2]
[331753714,1720753841222,-500.0,0.00013749,2]
[331753715,1720753841231,-633.7,0.00013749,2]
[331753716,1720753841240,-500.0,0.00013749,2]
[331753717,1720753841250,-500.0,0.00013749,2]
[331753718,1720753841259,-500.0,0.00013749,2]
[331753719,1720753841268,-500.0,0.00013749,2]
[331753720,1720753841278,-672.77,0.00013749,2]
[331753721,1720753841287,-4929.24,0.00013749,2]
[331753722,1720753841297,-500.0,0.00013749,2]
[331753723,1720753841306,-893.72,0.00013749,2]
[331753724,1720753841315,-1244.72,0.00013749,2]
[331753725,1720753841325,-568.7,0.00013749,2]
[331753726,1720753841334,-500.0,0.00013749,2]
[331753727,1720753841344,-500.0,0.00013749,2]
[331753728,1720753841353,-500.0,0.00013749,2]
[331753729,1720753841362,-500.0,0.00013749,2]
[331753730,1720753841519,-500.0,0.00013749,2]
[331753731,1720753841529,-500.0,0.00013749,2]
[331753732,1720753841539,-559.67,0.00013749,2]
[331753733,1720753841548,-500.0,0.00013749,2]
[331753734,1720753841558,-641.54,0.00013749,2]
[331753735,1720753841567,-500.0,0.00013749,2]
[331753736,1720753841576,-500.0,0.00013749,2]
[331753737,1720753841586,-500.0,0.00013749,2]
[331753738,1720753841596,-500.0,0.00013749,2]
[331753739,1720753841605,-500.0,0.00013749,2]
[331753740,1720753841616,-500.0,0.00013749,2]
[331753741,1720753841625,-500.0,0.00013749,2]
[331753742,1720753841635,-816.28,0.00013749,2]
[331753743,1720753841644,-500.0,0.00013749,2]
[331753744,1720753841654,-500.0,0.00013749,2]
[331753745,1720753841663,-500.0,0.00013749,2]
[331753746,1720753841673,-500.0,0.00013749,2]
[331753747,1720753841682,-659.46,0.00013749,2]
[331753748,1720753841701,-520.9,0.00013749,2]
[331753749,1720753841712,-2690.48,0.00013749,2]
[331753750,1720753841722,-500.0,0.00013749,2]
[331753751,1720753841732,-561.42,0.00013749,2]
[331753752,1720753841742,-549.05,0.00013749,2]
[331753753,1720753841753,-500.0,0.00013749,2]
[331753754,1720753841763,-845.75,0.00013749,2]
[331753755,1720753841772,-546.01,0.00013749,2]
[331753756,1720753841782,-630.37,0.00013749,2]
[331753757,1720753841793,-500.0,0.00013749,2]
[331753758,1720753841803,-594.38,0.00013749,2]
[331753759,1720753841813,-500.0,0.00013749,2]
[331753760,1720753841823,-500.0,0.00013749,2]
[331753761,1720753841836,-500.0,0.00013749,2]
[331753762,1720753841846,-766.85,0.00013749,2]
[331753763,1720753841856,-500.0,0.00013749,2]
[331753764,1720753841866,-1279.88,0.00013749,2]
[331753765,1720753841878,-500.0,0.00013749,2]
[331753766,1720753841889,-666.89,0.00013749,2]
[331753767,1720753841901,-500.0,0.00013749,2]
[331753768,1720753841913,-521.11,0.00013749,2]
[331753769,1720753841930,-500.0,0.00013749,2]
[331753770,1720753841940,-500.0,0.00013749,2]
[331753771,1720753841951,-1284.67,0.00013749,2]
[331753772,1720753841962,-500.0,0.00013749,2]
[331753773,1720753841972,-521.31,0.00013749,2]
[331753774,1720753841982,-500.0,0.00013749,2]
[331753775,1720753841992,-500.0,0.00013749,2]
[331753776,1720753842002,-2357.51,0.00013749,2]
[331753777,1720753842013,-536.16,0.00013749,2]
[331753778,1720753842023,-500.0,0.00013749,2]
[331753779,1720753842033,-500.0,0.00013749,2]
[331753780,1720753842043,-2897.7,0.00013749,2]
[331753781,1720753842054,-500.0,0.00013749,2]
[331753782,1720753842063,-2160.68,0.00013749,2]
[331753783,1720753842073,-500.0,0.00013749,2]
[331753784,1720753842083,-3693.31,0.00013749,2]
[331753785,1720753842093,-1000.0,0.00013749,2]
[331753786,1720753842104,-1000.0,0.00013749,2]
[331753787,1720753842114,-1000.0,0.00013749,2]
[331753788,1720753842124,-1000.0,0.00013749,2]
[331753789,1720753842133,-1000.0,0.00013749,2]
[331753790,1720753842143,-1000.0,0.00013749,2]